bitfinex/quotes_ETHUSD_20250326
["timestamp","ask_amount","ask_price","bid_price","bid_amount"]
[1743014535903,9.1621546,2011.0,2010.7,4.97339]
[1743014536292,4.1894346,2011.0,2010.7,4.9733]
[1743014536522,4.1894346,2011.0,2010.8,0.7519]
[1743014536822,3.0,2011.0,2010.8,0.7519]
[1743014539096,9.1616346,2011.2,2010.8,10.69805]
[1743014539426,9.72498,2011.3,2010.9,9.94546]
[1743014539800,3.0,2011.2,2010.9,9.94546]
[1743014540229,4.97198,2011.3,2011.0,4.97264]
[1743014540409,4.9715,2011.5,2011.1,5.79836]
[1743014540937,3.0,2011.4,2011.1,5.79836]
[1743014541097,3.0,2011.4,2011.1,7.29440346]
[1743014541503,13.9136046,2011.6,2011.2,4.97207]
[1743014541704,3.0,2011.5,2011.3,4.97177]
[1743014542435,3.0,2011.5,2011.2,4.97207]
[1743014542836,12.94301,2011.5,2011.1,8.27320343]
[1743014543036,7.97143,2011.5,2011.2,1.32457434]
[1743014543629,7.97143,2011.5,2011.2,6.29672434]
[1743014544037,3.0,2011.5,2011.2,11.26869434]
[1743014544214,4.97117,2011.6,2011.3,4.97186]
[1743014544724,4.97117,2011.6,2011.2,6.29654434]
[1743014544936,4.97142,2011.5,2011.2,6.29654434]
[1743014545104,9.1608546,2011.5,2011.2,1.32457434]
[1743014545304,9.3586546,2011.5,2011.1,7.29461346]
[1743014545742,4.97174,2011.4,2011.1,7.29461346]
[1743014546232,9.3586546,2011.5,2011.1,7.29461346]
[1743014546442,9.1608546,2011.5,2011.1,12.26686346]
[1743014546736,9.1608546,2011.5,2011.2,6.29814977]
[1743014547138,4.97119,2011.6,2011.3,4.97188]
[1743014548537,7.97119,2011.6,2011.3,4.97188]
[1743014549430,7.97119,2011.6,2011.2,6.29804977]
[1743014549637,7.97119,2011.6,2011.3,0.71242498]
[1743014549837,7.97119,2011.6,2011.3,5.68430498]
[1743014551340,7.97119,2011.6,2011.3,0.71242498]
[1743014551534,12.94251,2011.6,2011.2,4.97201]
[1743014552040,4.97145,2011.5,2011.2,4.97201]
[1743014552841,9.1608846,2011.5,2011.2,4.97201]
[1743014553737,7.97119,2011.6,2010.9,0.8302]
[1743014553738,4.97224,2011.2,2010.9,0.8302]
[1743014554106,4.97224,2011.2,2010.9,5.80306]
[1743014554542,9.94455,2011.2,2010.9,0.8302]
[1743014554746,4.97224,2011.2,2010.9,0.8302]
[1743014554957,9.1613746,2011.3,2010.9,5.803]
[1743014555134,14.1334346,2011.3,2010.9,10.77578]
[1743014555441,9.1613746,2011.3,2010.9,10.77578]
[1743014555629,14.1334346,2011.3,2010.9,7.37007768]
[1743014555945,14.1334846,2011.3,2010.9,7.37007768]
[1743014556747,9.1613746,2011.3,2010.9,12.34282768]
[1743014556934,14.1334346,2011.3,2010.9,7.37004768]
[1743014557117,4.9717,2011.4,2011.0,4.97256]
[1743014557312,13.9118646,2011.5,2011.2,0.7729]
[1743014557512,4.751,2011.5,2011.2,5.74498]
[1743014557717,4.751,2011.5,2011.3,4.97177]
[1743014558251,4.751,2011.5,2011.3,19.47177]
[1743014558417,4.751,2011.5,2011.3,4.97177]
[1743014558610,4.751,2011.5,2011.2,5.7449]
[1743014558814,18.8835746,2011.5,2011.2,0.7729]
[1743014559023,18.8835746,2011.5,2011.2,15.2729]
[1743014559436,18.8835746,2011.5,2011.2,0.7729]
[1743014560045,4.97168,2011.4,2011.1,19.47228]
[1743014560224,4.97168,2011.4,2011.1,20.14523667]
[1743014560426,4.97168,2011.4,2011.1,5.64523667]
[1743014561612,14.1097846,2011.5,2011.2,4.97203]
[1743014561815,8.9404346,2011.5,2011.2,4.97203]
[1743014562215,4.751,2011.5,2011.3,5.76166]
[1743014562443,7.97103,2011.7,2011.4,4.97166]
[1743014563153,12.94212,2011.7,2011.3,6.41009354]
[1743014563444,7.97103,2011.7,2011.3,6.41009354]
[1743014563823,3.0,2011.7,2011.4,4.97155]
[1743014564144,14.1309846,2011.8,2011.4,4.97155]
[1743014564351,14.1309846,2011.8,2011.4,6.20779706]
[1743014566239,4.97094,2011.7,2011.4,6.20779706]
[1743014568251,4.1894346,2011.6,2011.3,1.43843354]
[1743014568444,4.1894346,2011.6,2011.2,0.98060709]
[1743014568445,4.97148,2011.5,2011.2,0.98060709]
[1743014568617,4.97148,2011.5,2011.2,5.95267709]
[1743014568824,9.1606246,2011.6,2011.3,4.97189]
[1743014569023,4.97095,2011.7,2011.4,0.7652]
[1743014569224,3.0,2011.7,2011.4,5.73684]
[1743014569558,3.0,2011.7,2011.5,4.9714]
[1743014569753,4.97095,2011.7,2011.4,5.73684]
[1743014569924,7.97095,2011.7,2011.4,5.73684]
[1743014570251,7.97095,2011.7,2011.4,0.7652]
[1743014570252,12.94206,2011.7,2011.4,0.7652]
[1743014570445,4.97128,2011.6,2011.4,0.7652]
[1743014571053,9.1609746,2011.5,2011.2,0.8132]
[1743014571750,14.1325446,2011.5,2011.2,0.8132]
[1743014571951,9.1609746,2011.5,2011.2,0.8132]
[1743014572155,14.1325446,2011.5,2011.2,0.8132]
[1743014572462,14.1325646,2011.5,2011.2,0.8132]
[1743014572752,9.1609746,2011.5,2011.2,0.8132]
[1743014576460,4.97167,2011.4,2011.2,0.8132]
[1743014577377,4.97215,2011.2,2011.1,6.12]
[1743014577548,4.97215,2011.2,2010.8,5.76739]
[1743014577736,9.1613446,2011.3,2010.8,5.76739]
[1743014577942,14.1334546,2011.3,2010.9,4.97278]
[1743014578142,4.97217,2011.2,2010.8,10.74039]
[1743014578341,4.97217,2011.2,2010.9,4.97282]
[1743014579934,4.97217,2011.2,2010.8,7.97186781]
[1743014580863,9.9445,2011.2,2010.8,7.97186781]
[1743014581157,4.97217,2011.2,2010.8,7.97186781]
[1743014581359,4.97192,2011.3,2011.0,4.97264]
[1743014581565,3.0,2011.3,2011.0,6.26707878]
[1743014582134,4.97216,2011.2,2011.0,1.29443878]
[1743014582337,4.97216,2011.2,2010.9,4.97273]
[1743014582638,12.1614246,2011.3,2010.9,9.94548]
[1743014582859,12.1614246,2011.3,2011.0,4.97264]
[1743014583370,17.1335146,2011.3,2010.9,4.97273]
[1743014583538,12.1614246,2011.3,2010.9,9.94547]
[1743014583744,17.1335446,2011.3,2010.9,6.36666013]
[1743014583946,12.1614246,2011.3,2010.9,11.33942013]
[1743014584143,12.1614246,2011.3,2010.9,6.36666013]
[1743014584359,12.1614246,2011.3,2011.0,4.97263]
[1743014585964,7.97199,2011.3,2011.0,4.97263]
[1743014586168,3.0,2011.3,2011.1,0.7976]
[1743014586665,4.97118,2011.6,2011.2,9.94419]
[1743014586872,9.1605046,2011.7,2011.2,4.9719]
[1743014587165,4.97107,2011.7,2011.3,4.97188]
[1743014587373,4.97107,2011.7,2011.4,0.7527]
[1743014587374,3.0,2011.6,2011.4,0.7527]
[1743014587565,3.0,2011.7,2011.4,5.72435]
[1743014588160,7.97092,2011.7,2011.4,5.72435]
[1743014588658,12.1603546,2011.7,2011.4,0.7527]
[1743014589160,12.1603546,2011.7,2011.4,5.72435]
[1743014589544,17.1314346,2011.7,2011.4,0.7527]
[1743014589738,12.1603546,2011.7,2011.4,0.7527]
[1743014589940,4.97125,2011.6,2011.4,0.7527]
[1743014590678,12.1603546,2011.7,2011.4,0.7527]
[1743014590853,17.1314746,2011.7,2011.4,0.7527]
[1743014591372,4.97116,2011.6,2011.4,0.7527]
[1743014591570,12.1603546,2011.7,2011.4,0.7527]
[1743014591779,4.97119,2011.6,2011.4,0.7527]
[1743014592237,17.1314246,2011.7,2011.4,0.7527]
[1743014592741,12.1603546,2011.7,2011.4,0.7527]
[1743014592977,17.1314246,2011.7,2011.4,0.7527]
[1743014594073,12.1603546,2011.7,2011.4,0.7527]
[1743014594281,4.97166,2011.4,2011.1,0.7708]
[1743014596149,9.94347,2011.4,2011.1,0.7708]
[1743014596546,9.1614346,2011.3,2011.0,6.12]
[1743014596747,4.97215,2011.2,2011.0,6.12]
[1743014596961,4.97215,2011.2,2010.9,0.7645]
[1743014597879,9.94447,2011.2,2010.9,0.7645]
[1743014598078,9.94446,2011.2,2010.9,0.7645]
[1743014598286,4.97215,2011.2,2010.9,0.7645]
[1743014598588,3.0,2011.2,2010.9,5.73725]
[1743014598751,3.0,2011.2,2010.9,7.22723046]
[1743014599181,7.97217,2011.2,2010.9,7.22723046]
[1743014599983,7.97217,2011.2,2010.9,2.25448046]
[1743014600695,12.94449,2011.2,2010.9,2.25448046]
[1743014601002,7.97217,2011.2,2010.9,2.25448046]
[1743014601677,3.0,2011.2,2010.9,2.25448046]
[1743014601848,7.97219,2011.2,2010.9,5.7373]
[1743014603466,5.17023,2011.1,2010.7,4.97335]
[1743014603651,4.97291,2010.9,2010.6,6.9176]
[1743014604290,9.94596,2010.9,2010.6,6.9176]
[1743014604589,4.97291,2010.9,2010.6,6.9176]
[1743014605887,9.3604046,2010.8,2010.2,7.0609748]
[1743014606196,4.97422,2010.4,2010.2,0.9409748]
[1743014606700,4.97422,2010.4,2010.2,0.1190748]
[1743014607563,3.0,2010.5,2010.2,5.0935948]
[1743014608588,7.97393,2010.5,2010.2,5.0935948]
[1743014608797,12.94801,2010.5,2010.2,0.1190748]
[1743014609087,7.97393,2010.5,2010.2,0.1190748]
[1743014609390,7.97393,2010.5,2010.2,5.0936448]
[1743014611984,12.94797,2010.5,2010.2,0.1190748]
[1743014612161,4.97438,2010.3,2010.2,0.1190748]
[1743014612369,14.3357846,2010.4,2010.2,0.1190748]
[1743014612701,4.97438,2010.3,2010.2,0.1190748]
[1743014613599,9.3614646,2010.4,2010.2,0.1190748]
[1743014614267,4.97438,2010.3,2010.2,0.1190748]
[1743014615383,5.93538615,2010.3,2010.2,0.1190748]
[1743014615975,8.93538615,2010.3,2010.2,0.1190748]
[1743014618590,13.12482075,2010.3,2010.2,0.1190748]
[1743014619103,8.93538615,2010.3,2010.2,0.1190748]
[1743014619305,3.0,2010.4,2010.2,0.1190748]
[1743014620600,7.1894346,2010.4,2010.2,0.1190748]
[1743014621206,12.1635846,2010.4,2010.2,0.1190748]
[1743014622372,17.1378946,2010.4,2010.2,0.1190748]
[1743014622599,4.97438,2010.3,2010.2,0.1190748]
[1743014624475,5.17218,2010.3,2010.2,0.1190748]
[1743014629414,8.17218,2010.3,2010.2,0.1190748]
[1743014629808,12.3616146,2010.3,2010.2,0.1190748]
[1743014630015,12.1638146,2010.3,2010.2,0.1190748]
[1743014630193,14.56813701,2010.3,2010.2,0.1190748]
[1743014632317,12.1638146,2010.3,2010.2,0.1190748]
[1743014636635,4.97415,2010.4,2010.2,0.1190748]
[1743014637245,9.94846,2010.4,2010.2,0.1190748]
[1743014637818,4.97415,2010.4,2010.2,0.1190748]
[1743014638423,9.94844,2010.4,2010.2,0.1190748]
[1743014640916,12.1638146,2010.3,2010.2,0.1190748]
[1743014641229,7.97438,2010.3,2010.2,0.1190748]
[1743014642197,12.1638146,2010.3,2010.2,0.1190748]
[1743014643624,12.53571325,2010.3,2010.2,0.1190748]
[1743014646723,12.73351325,2010.3,2010.2,0.1190748]
[1743014646903,15.40757886,2010.3,2010.2,0.1190748]
[1743014647588,15.40757886,2010.3,2010.2,4.8e-06]
[1743014649933,20.64957886,2010.3,2010.2,4.8e-06]
[1743014650231,15.40757886,2010.3,2010.2,4.8e-06]
[1743014651335,8.17242,2010.2,2010.1,4.8e-06]
[1743014651546,13.29786906,2010.2,2010.1,4.8e-06]
[1743014652533,35.34326506,2010.2,2010.1,4.8e-06]
[1743014652711,32.76326406,2010.2,2010.1,4.8e-06]
[1743014652906,26.32467006,2010.2,2010.1,4.8e-06]
[1743014653307,21.80482006,2010.2,2010.1,4.8e-06]
[1743014653627,13.29786906,2010.2,2010.1,4.8e-06]
[1743014659242,14.29880147,2010.2,2010.1,4.8e-06]
[1743014663445,29.42147847,2010.2,2010.1,4.8e-06]
[1743014663637,20.15632247,2010.2,2010.1,4.8e-06]
[1743014665020,16.58345347,2010.2,2010.1,4.8e-06]
[1743014665218,14.29880147,2010.2,2010.1,4.8e-06]
[1743014676159,13.29786906,2010.2,2010.1,4.8e-06]
[1743014676959,14.14093624,2010.2,2010.1,4.8e-06]
[1743014678868,11.62468535,2010.2,2010.1,4.8e-06]
[1743014679156,14.14093624,2010.2,2010.1,4.8e-06]
[1743014679662,11.62468535,2010.2,2010.1,4.8e-06]
[1743014680932,16.87368535,2010.2,2010.1,4.8e-06]
[1743014681132,14.14093624,2010.2,2010.1,4.8e-06]
[1743014681859,11.62468535,2010.2,2010.1,4.8e-06]
[1743014682257,11.42688535,2010.2,2010.1,4.8e-06]
[1743014685461,13.94313624,2010.2,2010.1,4.8e-06]
[1743014686731,15.77631624,2010.2,2009.5,0.8121]
[1743014686936,15.77631624,2010.2,2009.0,0.8121]
[1743014686937,4.97731,2009.2,2009.0,0.8121]
[1743014687160,2.51625089,2009.1,2009.0,0.8121]
[1743014687353,7.49356089,2009.2,2009.0,0.8121]
[1743014688238,7.9757,2009.8,2009.5,4.97629]
[1743014688461,15.46776089,2009.8,2009.7,0.8121]
[1743014688968,17.14509869,2009.8,2009.7,0.8121]
[1743014692551,7.9757,2009.8,2009.7,0.8121]
[1743014701177,3.0,2009.8,2009.7,0.8121]
[1743014701376,4.97417,2010.4,2009.9,5.73239]
[1743014701547,4.97417,2010.4,2010.0,4.97499]
[1743014701743,4.9744,2010.3,2010.1,0.8017]
[1743014702691,3.0,2010.2,2010.1,0.8017]
[1743014706601,9.94847,2010.4,2010.1,0.8017]
[1743014706767,4.97417,2010.4,2010.1,5.77657]
[1743014706967,9.94848,2010.4,2010.1,0.8017]
[1743014707173,4.97417,2010.4,2010.1,0.8017]
[1743014707696,4.97449,2010.3,2010.1,0.8017]
[1743014707907,4.97417,2010.4,2010.1,0.8017]
[1743014708700,3.0,2010.4,2010.2,5.73508]
[1743014708861,3.0,2010.4,2010.2,10.70952]
[1743014709063,3.0,2010.4,2010.3,4.97438]
[1743014709301,3.0,2010.4,2010.3,5.76468]
[1743014709801,4.97317,2010.8,2010.4,0.7903]
[1743014709953,4.97268,2011.0,2010.7,4.97336]
[1743014710158,8.76070687,2011.0,2010.7,4.97336]
[1743014710359,8.76070687,2011.0,2010.6,5.76374]
[1743014710653,4.97297,2010.9,2010.6,5.76374]
[1743014711105,7.97297,2010.9,2010.6,5.76374]
[1743014711465,3.0,2010.9,2010.7,5.76368]
[1743014712305,3.0,2010.9,2010.7,0.7903]
[1743014713367,4.97339,2010.7,2010.5,0.7903]
[1743014713573,9.94702,2010.7,2010.5,0.7903]
[1743014714299,7.97339,2010.7,2010.5,0.7903]
[1743014715309,3.0,2010.7,2010.5,0.7903]
[1743014716307,3.0,2010.7,2010.5,5.76418]
[1743014716494,4.97304,2010.9,2010.6,4.97363]
[1743014716696,3.0,2010.9,2010.7,5.78638]
[1743014717367,3.0,2010.9,2010.7,0.813]
[1743014717790,7.97299,2010.9,2010.7,0.813]
[1743014718372,3.0,2010.9,2010.7,0.813]
[1743014718902,3.0,2010.9,2010.7,5.78636]
[1743014719605,3.0,2010.9,2010.7,5.78627]
[1743014719809,3.0,2010.9,2010.7,5.78622]
[1743014720010,3.0,2011.0,2010.7,5.78622]
[1743014720209,3.0,2011.0,2010.8,4.97313]
[1743014720420,3.0,2011.0,2010.7,5.78622]
[1743014720421,3.0,2011.0,2010.7,10.75947]
[1743014720775,7.97267,2011.0,2010.7,5.78622]
[1743014721105,7.97267,2011.0,2010.7,0.813]
[1743014721410,12.94548,2011.0,2010.7,0.813]
[1743014721713,7.97267,2011.0,2010.7,5.78631]
[1743014722004,7.97267,2011.0,2010.7,0.813]
[1743014722225,12.9455,2011.0,2010.7,0.813]
[1743014722700,7.97267,2011.0,2010.7,5.78636]
[1743014723414,7.9728,2011.0,2010.7,0.813]
[1743014723584,4.97331,2010.8,2010.5,0.7732]
[1743014723786,9.16689869,2010.8,2010.5,0.7732]
[1743014724103,4.97346,2010.7,2010.5,0.7732]
[1743014724508,4.97317,2010.8,2010.5,0.7732]
[1743014724702,4.97317,2010.8,2010.5,5.74699]
[1743014725204,4.97293,2010.9,2010.5,6.26261415]
[1743014725404,7.97293,2010.9,2010.6,4.97362]
[1743014725614,3.0,2010.8,2010.7,0.8253]
[1743014726630,4.97293,2010.9,2010.7,0.8253]
[1743014726823,3.0,2010.8,2010.7,0.8253]
[1743014727887,7.97314,2010.8,2010.7,0.8253]
[1743014728093,7.97314,2010.8,2010.5,1.33400415]
[1743014728605,7.97314,2010.8,2010.5,6.30785415]
[1743014731196,7.19358869,2010.8,2010.5,0.8183]
[1743014731523,4.97357,2010.7,2010.5,0.8183]
[1743014731698,3.0,2010.8,2010.5,0.8183]
[1743014731889,3.0,2010.8,2010.6,4.97356]
[1743014732398,3.0,2010.8,2010.5,5.79217]
[1743014732595,3.0,2010.8,2010.5,8.24074587]
[1743014732798,7.97323,2010.8,2010.5,3.26687587]
[1743014733013,4.97339,2010.7,2010.5,3.26687587]
[1743014733192,4.97363,2010.6,2010.3,5.80185]
[1743014735154,4.97392,2010.5,2010.3,0.8275]
[1743014735305,9.94701,2010.7,2010.3,5.8018]
[1743014735501,4.97346,2010.7,2010.3,10.77608]
[1743014735702,4.97346,2010.7,2010.3,5.80173]
[1743014736048,4.97346,2010.7,2010.4,4.97405]
[1743014736253,9.16649869,2010.9,2010.6,4.97363]
[1743014736400,3.0,2010.8,2010.6,4.97363]
[1743014736603,3.0,2010.8,2010.6,19.47363]
[1743014737327,3.0,2010.9,2010.6,12.471724]
[1743014737534,7.973,2010.9,2010.7,0.7943]
[1743014741016,3.0,2010.9,2010.7,0.7943]
[1743014742148,7.97292,2010.9,2010.7,0.7943]
[1743014742839,3.0,2010.9,2010.7,0.7943]
[1743014743333,7.97294,2010.9,2010.7,0.7943]
[1743014744532,3.0,2010.9,2010.7,0.7943]
[1743014745136,3.0,2010.9,2010.7,8.39137549]
[1743014745434,34.05957476,2011.4,2011.0,4.97247]
[1743014745435,38.61556,2011.4,2011.0,4.97247]
[1743014745637,3.0,2011.3,2011.1,5.80387]
[1743014745942,3.0,2011.3,2011.1,0.8315]
[1743014746237,7.972,2011.3,2011.1,0.8315]
[1743014746931,3.0,2011.3,2011.1,5.8039]
[1743014747320,3.0,2011.3,2011.1,8.331544]
[1743014747526,3.0,2011.3,2011.1,3.359144]
[1743014748338,3.0,2011.3,2011.1,8.331484]
[1743014748541,3.0,2011.3,2011.1,3.359144]
[1743014749042,3.0,2011.3,2011.1,8.331464]
[1743014750345,3.0,2011.3,2011.1,0.8315]
[1743014752714,3.0,2011.3,2011.1,5.80387]
[1743014753034,3.0,2011.3,2011.1,0.8315]
[1743014754237,7.97191,2011.3,2011.1,0.8315]
[1743014755042,3.0,2011.3,2011.1,0.8315]
[1743014755220,3.0,2011.3,2011.1,5.8038]
[1743014756322,3.0,2011.3,2011.1,0.8315]
[1743014757042,3.0,2011.3,2011.1,5.80383]
[1743014757744,7.97201,2011.3,2011.1,0.8315]
[1743014757945,3.0,2011.3,2011.1,0.8315]
[1743014759749,3.0,2011.3,2011.1,5.8039]
[1743014760728,3.0,2011.3,2011.1,0.8315]
[1743014760928,3.0,2011.3,2011.1,5.80381]
[1743014762429,3.0,2011.3,2011.1,0.8315]
[1743014762614,7.97199,2011.3,2011.0,4.97247]
[1743014762820,12.94406,2011.3,2010.9,5.74568]
[1743014763043,7.97199,2011.3,2010.9,10.71843]
[1743014763244,7.97199,2011.3,2011.0,4.97262]
[1743014763847,3.0,2011.3,2011.0,4.97262]
[1743014764149,3.0,2011.3,2011.0,4.97252]
[1743014764444,9.08201656,2011.3,2010.9,0.7728]
[1743014764746,9.94461,2011.2,2010.8,5.97937879]
[1743014765048,4.9723,2011.2,2010.8,9.94608]
[1743014765361,4.9723,2011.2,2010.9,4.97287]
[1743014765536,19.02596656,2011.3,2010.9,4.97276]
[1743014765935,14.05395656,2011.3,2010.9,9.94557]
[1743014766137,4.97217,2011.2,2010.9,4.97276]
[1743014766667,14.05395656,2011.3,2011.0,4.97264]
[1743014766867,19.02606656,2011.3,2010.9,4.97276]
[1743014767263,19.02602656,2011.3,2010.9,9.94551]
[1743014767445,4.97217,2011.2,2010.9,4.97275]
[1743014767846,4.97217,2011.2,2010.9,19.47275]
[1743014770672,9.16623869,2011.0,2010.6,4.97351]
[1743014770839,0.1978,2011.1,2010.5,0.8021]
[1743014770840,9.16682869,2010.8,2010.5,0.8021]
[1743014771171,9.16682869,2010.8,2010.3,0.125838]
[1743014771172,4.19358869,2010.6,2010.3,15.455138]
[1743014771336,9.16771869,2010.4,2010.3,0.125838]
[1743014771539,9.36551869,2010.4,2010.3,0.125838]
[1743014771965,12.36551869,2010.4,2010.3,0.125838]
[1743014772174,16.36130738,2010.4,2010.3,0.125838]
[1743014772384,16.55910738,2010.4,2010.3,0.125838]
[1743014772551,15.34843469,2010.4,2010.3,0.125838]
[1743014772758,15.71629461,2010.4,2010.3,0.125838]
[1743014774466,11.52270592,2010.4,2010.3,0.125838]
[1743014774669,13.27778992,2010.4,2010.3,0.125838]
[1743014774997,12.71213,2010.4,2010.3,0.125838]
[1743014776891,7.738,2010.4,2010.3,0.125838]
[1743014777061,12.71213,2010.4,2010.3,0.125838]
[1743014777882,7.738,2010.4,2010.3,0.125838]
[1743014778700,7.738,2010.4,2010.3,14.625838]
[1743014778929,12.71213,2010.4,2010.3,14.625838]
[1743014779130,12.71213,2010.4,2010.3,0.125838]
[1743014781943,14.95693184,2010.4,2010.3,0.125838]
[1743014782309,12.71213,2010.4,2010.3,0.125838]
[1743014783257,3.0,2010.4,2010.3,0.125838]
[1743014785039,3.0,2010.4,2010.3,5.100218]
[1743014785236,3.0,2010.4,2010.3,0.125838]
[1743014785923,3.0,2010.4,2010.3,14.625838]
[1743014786128,3.0,2010.4,2010.3,17.1607228]
[1743014789344,3.0,2010.4,2010.3,0.125838]
[1743014791140,7.97413,2010.4,2010.3,0.125838]
[1743014791959,3.0,2010.4,2010.3,0.125838]
[1743014792164,4.739,2010.7,2010.4,4.97402]
[1743014792334,3.0,2010.7,2010.3,0.125838]
[1743014792539,3.0,2010.7,2010.5,4.97376]
[1743014795078,3.0,2010.8,2010.5,4.97376]
[1743014795880,3.0,2010.8,2010.5,4.97375]
[1743014796175,7.97316,2010.8,2010.5,4.97375]
[1743014796488,12.94647,2010.8,2010.5,1.42758214]
[1743014796648,7.97316,2010.8,2010.5,1.42758214]
[1743014796847,12.16674869,2010.8,2010.5,1.42758214]
[1743014797380,12.16674869,2010.8,2010.5,6.40142214]
[1743014797779,12.16674869,2010.8,2010.3,0.125838]
[1743014797780,4.97402,2010.5,2010.3,0.125838]
[1743014798279,4.97413,2010.4,2010.3,0.125838]
[1743014798493,9.16771869,2010.4,2010.3,0.125838]
[1743014800074,4.97402,2010.5,2010.3,0.125838]
[1743014800281,3.0,2010.5,2010.3,0.916638]
[1743014800784,3.0,2010.6,2010.4,4.97411]
[1743014802972,3.0,2010.6,2010.3,25.9542208]
[1743014803182,3.0,2010.6,2010.3,25.9542708]
[1743014803669,3.0,2010.6,2010.3,25.9542008]
[1743014803870,3.0,2010.6,2010.4,4.97404]
[1743014804402,9.16675869,2010.8,2010.4,4.97392]
[1743014804610,3.0,2010.8,2010.5,4.97367]
[1743014804971,7.97318,2010.8,2010.5,4.97367]
[1743014805473,7.97316,2010.8,2010.5,4.97367]
[1743014805667,12.94646,2010.8,2010.4,12.54349108]
[1743014805873,12.94646,2010.8,2010.4,7.56941108]
[1743014806173,7.97316,2010.8,2010.4,12.54340108]
[1743014806606,12.94646,2010.8,2010.4,7.56939108]
[1743014806783,7.97316,2010.8,2010.4,12.54337108]
[1743014808415,3.0,2010.8,2010.5,7.82877219]
[1743014808707,3.0,2010.8,2010.6,4.97361]
[1743014809382,3.0,2010.8,2010.5,12.80255219]
[1743014809582,3.0,2010.8,2010.5,7.82865219]
[1743014810015,3.0,2010.8,2010.6,9.94702]
[1743014810313,3.0,2011.1,2010.8,4.97301]
[1743014810619,0.1978,2011.4,2011.1,4.97228]
[1743014810836,4.9717,2011.4,2011.1,4.97228]
[1743014811685,4.97177,2011.4,2011.0,19.47264]
[1743014811891,3.0,2011.3,2011.0,21.999829]
[1743014812086,3.0,2011.3,2011.1,4.97229]
[1743014812290,3.0,2011.4,2011.1,5.78085]
[1743014812491,4.97142,2011.5,2011.2,4.97193]
[1743014812895,3.0,2011.4,2011.2,4.97193]
[1743014813425,4.97142,2011.5,2011.2,4.97193]
[1743014813426,3.0,2011.5,2011.2,6.19391095]
[1743014813896,7.97143,2011.5,2011.2,6.19391095]
[1743014814217,7.97143,2011.5,2011.1,5.78096]
[1743014814520,9.16566869,2011.3,2011.0,1.0186703]
[1743014814676,9.16566869,2011.3,2010.9,0.8138]
[1743014814881,3.0,2011.3,2011.0,4.97257]
[1743014815094,12.94405,2011.3,2010.9,5.78664]
[1743014815525,7.972,2011.3,2010.9,5.78661]
[1743014816029,4.97215,2011.2,2010.9,5.78661]
[1743014816594,7.972,2011.3,2011.0,4.97255]
[1743014817208,3.0,2011.3,2011.0,9.94506]
[1743014817412,7.9717,2011.4,2011.1,6.048256]
[1743014817637,3.0,2011.4,2010.9,0.8138]
[1743014817867,9.94469,2011.2,2010.9,0.8138]
[1743014819271,4.97243,2011.1,2010.9,0.8138]
[1743014819769,4.97265,2011.0,2010.7,0.7708]
[1743014819944,4.9729,2010.9,2010.7,0.7708]
[1743014820144,4.97265,2011.0,2010.7,0.7708]
[1743014820444,9.9455,2011.0,2010.7,0.7708]
[1743014820771,4.97292,2010.9,2010.7,0.7708]
[1743014820966,9.94597,2010.9,2010.6,1.28516659]
[1743014821169,9.94597,2010.9,2010.5,14.5]
[1743014821170,4.97352,2010.7,2010.5,14.5]
[1743014821342,4.97352,2010.7,2010.4,6.12]
[1743014821573,4.97363,2010.6,2010.4,6.12]
[1743014821743,9.16710869,2010.7,2010.4,20.62]
[1743014822043,14.14067869,2010.7,2010.4,23.7667488]
[1743014822242,4.97365,2010.6,2010.4,9.2667488]
[1743014822662,14.14067869,2010.7,2010.4,9.2667488]
[1743014823035,4.97368,2010.6,2010.4,9.2667488]
[1743014823230,9.9475,2010.6,2010.4,9.2667488]
[1743014823431,4.97388,2010.5,2010.4,6.12]
[1743014823631,9.16746869,2010.5,2010.4,6.12]
[1743014824267,9.16746869,2010.5,2010.3,0.125838]
[1743014825036,4.97413,2010.4,2010.3,0.125838]
[1743014826964,5.17193,2010.4,2010.3,0.125838]
[1743014827454,7.10323687,2010.4,2010.3,0.125838]
[1743014828430,5.17193,2010.4,2010.3,0.125838]
[1743014830148,8.17193,2010.4,2010.3,0.125838]
[1743014833665,12.73853898,2010.4,2010.3,0.125838]
[1743014833869,12.54073898,2010.4,2010.3,0.125838]
[1743014834097,12.73853898,2010.4,2010.3,0.125838]
[1743014834284,8.54495029,2010.4,2010.3,0.125838]
[1743014834460,10.81355919,2010.4,2010.3,0.125838]
[1743014836059,15.00714788,2010.4,2010.3,0.125838]
[1743014836999,10.81355919,2010.4,2010.3,0.125838]
[1743014846911,15.00714788,2010.4,2010.3,0.125838]
[1743014847078,10.81355919,2010.4,2010.3,0.125838]
[1743014847898,3.0,2010.4,2010.3,0.125838]
[1743014848102,7.97413,2010.4,2010.3,0.956338]
[1743014848489,7.97413,2010.4,2010.3,0.125838]
[1743014848704,8.17193,2010.4,2010.3,0.125838]
[1743014848919,12.36551869,2010.4,2010.3,5.6e-07]
[1743014849230,4.97659,2009.5,2009.3,0.8305]
[1743014849391,4.19358869,2009.4,2009.3,0.8305]
[1743014849592,4.736,2009.5,2009.3,0.8305]
[1743014850103,4.19358869,2009.6,2009.3,0.8305]
[1743014850104,3.0,2009.6,2009.3,5.80717]
[1743014850305,3.0,2009.6,2009.3,6.885596]
[1743014850693,4.19358869,2010.0,2009.6,0.8305]
[1743014850998,3.0,2009.9,2009.6,0.8305]
[1743014851831,3.0,2009.9,2009.7,0.7827]
[1743014853532,7.97592,2009.7,2009.2,6.889]
[1743014853831,4.19358869,2009.4,2009.2,6.889]
[1743014854039,4.19358869,2009.4,2009.2,0.769]
[1743014854326,10.16631956,2009.6,2009.2,0.769]
[1743014854534,3.0,2009.5,2009.2,0.769]